Cogmind - Beta 10.2 @@@ ROGUE MODE // 2021.02.25 @ 10:52:25 Player: PYNTER Result: Self-destructed Performance ------------- Evolutions (1) 500 Regions Visited (3) 600 Robots Destroyed (14) 70 Value Destroyed (260) 260 Prototype IDs (2) 40 Alien Tech Used (0) 0 Bonus (0) 0 TOTAL SCORE: 1470 Bonus ------- None Cogmind --------- Core Integrity 400/400 Matter 300/300 Energy 250/250 System Corruption 0% Temperature Cool (0) Movement Treading (160) Location -9/Materials Parts ------- > --- POWER (1) -------- Ion Engine > --- PROPULSION (2) --- Light Treads Light Treads > --- UTILITY (3) ------ Heat Sink Large Storage Unit Light Armor Plating > --- WEAPON (3) ------- Small Laser > --- INVENTORY (10) --- Light Ion Engine Light Ion Engine Visual Processing Unit Signal Interpreter Light Armor Plating Light Armor Plating Light Armor Plating Peak State ------------ > --- POWER ------------ Ion Engine > --- PROPULSION ------- Light Treads Light Treads > --- UTILITY ---------- Heat Sink Large Storage Unit > --- WEAPON ----------- Small Laser Small Laser > --- INVENTORY -------- Ion Engine Ion Engine Light Ion Engine Visual Processing Unit Signal Interpreter Light Armor Plating Light Armor Plating Light Armor Plating Small Laser [Rating: 8] Favorites ----------- Power Ion Engine Engine Ion Engine Propulsion Light Treads Treads Light Treads Wheel Wheel Utility Heat Sink Device Heat Sink Storage Large Storage Unit Protection Light Armor Plating Weapon Small Laser Energy Gun Small Laser Build | -11 -10 -10 -9 ------- Run | Scr Mat Min Mat Slots Evolved 2 | . . . 2 Power . | . . . . Propulsion . | . . . . Utility 1 | . . . 1 Weapon 1 | . . . 1 Parts Attached 18 | 6 9 . 3 Power 5 | 1 2 . 2 Engine 5 | 1 2 . 2 Core . | . . . . Reactor . | . . . . Propulsion 6 | 2 4 . . Treads 4 | 2 2 . . Leg . | . . . . Wheel 2 | . 2 . . Hover . | . . . . Flight . | . . . . Utility 4 | 1 2 . 1 Device 1 | . 1 . . Storage 2 | 1 1 . . Processor . | . . . . Hackware . | . . . . Protection 1 | . . . 1 Artifact . | . . . . Weapon 3 | 2 1 . . Energy Gun 3 | 2 1 . . Energy Cannon . | . . . . Ballistic Gun . | . . . . Ballistic Cannon . | . . . . Launcher . | . . . . Special Weapon . | . . . . Impact Weapon . | . . . . Slashing Weapon . | . . . . Piercing Weapon . | . . . . Special Melee Weapon . | . . . . Unidentified Prototypes . | . . . . Parts Lost 2 | . 2 . . Power . | . . . . Propulsion . | . . . . Utility . | . . . . Weapon 2 | . 2 . . Highest Loss Streak 2 | . 2 . . Average Slot Usage (%) 90 | . 95 85 77 Engine 13 | . 14 14 11 Treads 26 | . 26 28 22 Device 12 | . 12 14 11 Storage 13 | . 14 14 11 Protection 1 | . . . 11 Energy Gun 21 | . 26 14 11 Naked Turns . | . . . . Heaviest Build 26 | 9 24 23 26 Greatest Support 40 | 40 40 40 40 Greatest Overweight (x) . | . . . . Average Overweight (x) . | . . . . Largest Inventory Capacity 10 | 6 10 10 10 Average Capacity 8 | 5 8 10 10 Most Carried 10 | 6 10 9 9 Average Carried 7 | 2 8 9 7 Final Capacity 10 | 6 10 10 10 Final Carried 9 | 6 9 9 7 Class Distribution -------------------- 100% | Mutant Dominant Class ---------------- Mutant | -10/Materials Mutant | -10/Mines Mutant | -9/Materials Resources | -11 -10 -10 -9 ----------- Run | Scr Mat Min Mat Matter Collected 375 | 228 117 . 30 Remotely . | . . . . Salvage Created 348 | . 270 . 78 Parts 28 | . 22 . 6 Haulers Intercepted . | . . . . Recyclers Shooed . | . . . . Parts Field Recycled . | . . . . Retrieved Matter . | . . . . Parts Self-Destructed . | . . . . Prevented . | . . . . Kills | -11 -10 -10 -9 ------- Run | Scr Mat Min Mat Combat Hostiles Destroyed 10 | . 9 . 1 Guns 10 | . 9 . 1 Classes Destroyed 4 | . 3 . 1 Operator 1 | . . . 1 Watcher 3 | . 2 . 1 Swarmer 6 | . 6 . . Grunt 4 | . 3 . 1 Best Kill Streak 3 | . 3 . 1 Combat Bots Only 3 | . 3 . 1 Max Kills in Single Turn 1 | . 1 . 1 Gunslinging . | . . . . Exploded . | . . . . Melee . | . . . . Uniques/NPCs Destroyed . | . . . . Combat | -11 -10 -10 -9 -------- Run | Scr Mat Min Mat Damage Taken 342 | . 230 . 112 Core 27 | . 27 . . Absorbed by Shields . | . . . . Core Remaining (%) 94 | 100 . 89 . Volleys Fired 33 | . 26 . 7 Largest 2 | . 2 . 1 Hottest 80 | . 80 . 40 Shots Fired 56 | . 49 . 7 Gun 56 | . 49 . 7 Cannon . | . . . . Launcher . | . . . . Special . | . . . . Kinetic . | . . . . Thermal 56 | . 49 . 7 Explosive . | . . . . Electromagnetic . | . . . . Robot Hit Streak 9 | . 9 . 3 Robot Miss Streak 4 | . 4 . 1 Penetration Max . | . . . . Secondary Targets . | . . . . Shots Hit Robots 35 | . 29 . 6 Core Hits 20 | . 15 . 5 Critical Hits . | . . . . Critical Kills . | . . . . Critical Parts Destroyed . | . . . . Melee Attacks . | . . . . Impact . | . . . . Slashing . | . . . . Piercing . | . . . . Sneak Attacks . | . . . . Combat Hostiles . | . . . . Follow-up Attacks . | . . . . Damage Inflicted 402 | . 333 . 69 Guns 402 | . 333 . 69 Cannons . | . . . . Explosions . | . . . . Melee . | . . . . Ramming . | . . . . Kinetic . | . . . . Thermal 402 | . 333 . 69 Explosive . | . . . . Electromagnetic . | . . . . Impact . | . . . . Slashing . | . . . . Piercing . | . . . . Highest Corruption . | . . . . Average Corruption . | . . . . Corruption Purged . | . . . . Overload Shots . | . . . . Overflow Damage . | . . . . Projectiles . | . . . . Explosions . | . . . . Melee . | . . . . Knockbacks . | . . . . Impact . | . . . . Kinetic . | . . . . Secondary . | . . . . Self-Inflicted Damage . | . . . . Shots . | . . . . Rammed . | . . . . Targets Rammed . | . . . . Kicked . | . . . . Crushed . | . . . . Highest Temperature 186 | . 186 . . Average Temperature 90 | . 90 . . Received Heat Transfer 66 | . 48 . 18 Siege Activations . | . . . . Robots Corrupted . | . . . . Combat Hostiles . | . . . . Parts Fried . | . . . . Impact Corruptions . | . . . . Robots Melted . | . . . . Combat Hostiles . | . . . . Parts Melted 2 | . 2 . . Heat Transferred 900 | . 750 . 150 Parts Sabotaged . | . . . . Parts Stolen . | . . . . Parts Stripped . | . . . . Power Chain Reactions . | . . . . Missiles Intercepted . | . . . . Alert | -11 -10 -10 -9 ------- Run | Scr Mat Min Mat Peak Influence 289 | . 289 37 86 Initial 37 | . . 37 14 Average 97 | . 143 37 46 Maximum Alert Level 1 | . 1 . . Low Security (%) 87 | 100 79 100 100 Level 1 12 | . 20 . . Level 2 . | . . . . Level 3 . | . . . . Level 4 . | . . . . Level 5 . | . . . . High Security . | . . . . Max Security . | . . . . Squads Dispatched 4 | . 3 . 1 Investigation 1 | . 1 . . Extermination . | . . . . Reinforcement 3 | . 2 . 1 Assault . | . . . . Garrison . | . . . . Intercept . | . . . . Construction Impeded . | . . . . Haulers Reinforced . | . . . . Stealth | -11 -10 -10 -9 --------- Run | Scr Mat Min Mat Distress Signals 2 | . 1 . 1 Communications Jammed . | . . . . Distress Signals . | . . . . Times Spotted 21 | . 16 . 5 Peak Tracking Total 4 | . 4 . 2 Tactical Retreats 2 | . 2 . . Traps | -11 -10 -10 -9 ------- Run | Scr Mat Min Mat Traps Triggered 3 | . 1 . 2 Indirectly . | . . . . Trap Hack Attempts . | . . . . Triggered . | . . . . Disarmed . | . . . . Reprogrammed . | . . . . Reused . | . . . . Traps Extracted . | . . . . Installed . | . . . . Triggered . | . . . . Machines | -11 -10 -10 -9 ---------- Run | Scr Mat Min Mat Machines Disabled . | . . . . Max in Single Turn . | . . . . Machines Sabotaged . | . . . . Garrisons Compromised . | . . . . Overloaded Fab Kills . | . . . . Fab Network Shutdowns . | . . . . Hacking | -11 -10 -10 -9 --------- Run | Scr Mat Min Mat Machines Accessed 1 | . 1 . . Terminals 1 | . 1 . . Fabricators . | . . . . Repair Stations . | . . . . Recycling Units . | . . . . Scanalyzers . | . . . . Garrison Access . | . . . . Total Hacks 6 | . 6 . . Successful 4 | . 4 . . Failed 2 | . 2 . . Catastrophic . | . . . . Database Lockouts . | . . . . Manual 1 | . 1 . . Terminals 6 | . 6 . . Fabricators . | . . . . Repair Stations . | . . . . Recycling Units . | . . . . Scanalyzers . | . . . . Garrison Access . | . . . . Terminal Hacks 4 | . 4 . . Record 1 | . 1 . . Prototype ID Bank 1 | . 1 . . Branch Access Points 1 | . 1 . . Emergency Access Points 1 | . 1 . . Fabricator Hacks . | . . . . Repair Station Hacks . | . . . . Recycling Unit Hacks . | . . . . Scanalyzer . | . . . . Garrison Access Hacks . | . . . . Unauthorized Hacks . | . . . . Terminals . | . . . . Fabricators . | . . . . Repair Stations . | . . . . Recycling Units . | . . . . Scanalyzers . | . . . . Garrison Access . | . . . . Data Cores Recovered . | . . . . Used . | . . . . Hacking Detections 1 | . 1 . . Full Trace Events . | . . . . Feedback Events . | . . . . Feedback Blocked . | . . . . Robot Schematics Acquired . | . . . . Robots Built . | . . . . Matter . | . . . . Time . | . . . . Total Robot Build Rating . | . . . . Part Schematics Acquired . | . . . . Parts Built . | . . . . Matter . | . . . . Time . | . . . . Total Part Build Rating . | . . . . Parts Repaired . | . . . . Time . | . . . . Parts Recycled . | . . . . Recycled Matter . | . . . . Retrieved Matter . | . . . . Retrieved Components . | . . . . Parts Scanalyzed . | . . . . Part Schematics Acquired . | . . . . Parts Damaged . | . . . . Bothacking | -11 -10 -10 -9 ------------ Run | Scr Mat Min Mat Used RIF Installer . | . . . . Robots Hacked . | . . . . Non-combat . | . . . . Combat . | . . . . Robot Hacks Applied . | . . . . Relay Couplers Released . | . . . . Robots Rewired . | . . . . Allies Hacked . | . . . . Hacks Repelled . | . . . . Allies | -11 -10 -10 -9 -------- Run | Scr Mat Min Mat Total Allies . | . . . . Largest Group . | . . . . Highest-Rated Group . | . . . . Highest-Rated Ally . | . . . . Total Orders . | . . . . Ally Attacks . | . . . . Total Damage . | . . . . Kills . | . . . . Allies Corrupted . | . . . . Allies Melted . | . . . . Intel | -11 -10 -10 -9 ------- Run | Scr Mat Min Mat Robot Analysis Total . | . . . . Derelict Logs Recovered . | . . . . Drone Launches . | . . . . Drone Recoveries . | . . . . Exploration | -11 -10 -10 -9 ------------- Run | Scr Mat Min Mat Turns Passed 864 | 85 510 144 125 Spaces Moved 442 | 45 245 91 61 Core 1 | 1 . . . Treads 427 | 44 231 91 61 Legs . | . . . . Wheels 14 | . 14 . . Hover . | . . . . Flight . | . . . . Fastest Speed 50 | 50 90 160 160 Average Speed 157 | 157 156 160 160 Slowest Speed 160 | 160 160 160 160 Overloaded Moves . | . . . . Propulsion Burnouts . | . . . . Robots Hopped . | . . . . Cave-ins Triggered . | . . . . Exploration Rate (%) 21 | 5 50 22 10 Regions Visited 3 Branch Regions 1 Pre-discovered Areas . | . . . . Known Exits Taken 1 | . 1 . . Unknown Exits Taken 2 | 1 . 1 . Scrap Searched 1 | . . 1 . Spaces Dug . | . . . . Terrain Destroyed . | . . . . Melee . | . . . . Projectile . | . . . . AOE . | . . . . Terrain Rammed . | . . . . Walls Destroyed . | . . . . Machines Disabled . | . . . . Actions | -11 -10 -10 -9 --------- Run | Scr Mat Min Mat Total 553 | 56 326 90 81 Wait 38 | . 30 . 8 Move 439 | 44 244 90 61 Hop . | . . . . Pick Up 15 | 6 9 . . Fast Attach 7 | 6 1 . . Attach 2 | . 1 . 1 Detach . | . . . . Swap 9 | . 7 . 2 Drop 10 | . 8 . 2 Fire 33 | . 26 . 7 Melee . | . . . . Ram . | . . . . Kick . | . . . . Crush . | . . . . Escape Stasis . | . . . . Rewire . | . . . . Trap . | . . . . Miscellaneous . | . . . . Route ------- -11/Scrapyard -10/Materials (discovered 3 exits: *Mat / *Min x2) -10/Mines -9/Materials History --------- Turn | Location | Event 7 | -11/Scrapyard | Discovered new exit (range 15) 86 | -11/Scrapyard | Entered Materials 138 | -10/Materials | Discovered new exit (range 15) 311 | -10/Materials | Build established: Mutant 403 | -10/Materials | Identified exit to Mines 460 | -10/Materials | Discovered new exit (range 3) 596 | -10/Materials | Entered Mines 678 | -10/Mines | Met a Derelict bent on vengeance 704 | -10/Mines | Discovered new exit (range 2) 740 | -10/Mines | Entered Materials 740 | -9/Materials | Evolved 2 slots: Utility x1, Weapon x1 865 | -9/Materials | Self-destructed Last Messages --------------- 00744_ O-16 Technician locks terminal. 00748_ O-16 Technician destroyed. 00749_ Acquired 10 matter. 00761_ Dropped Ion Engine. 00796_ Connecting with Scanalyzer... 00796_ Current location identified: Materials 00821_ G-34 Mercenary destroyed. 00823_ Acquired 20 matter. 00836_ Triggered Explosive Trap. 00836_ An explosion rips through the floor. 00841_ Triggered Explosive Trap. 00841_ An explosion rips through the floor. 00841_ R-06 Scavenger destroyed. 00851_ U-05 Engineer builds a Wall. 00855_ W-16 Scout destroyed. 00855_ U-05 Engineer lays Concrete. 00857_ U-05 Engineer builds a Wall. 00858_ W-16 Scout sends out distress signal. 00861_ U-05 Engineer lays Concrete. 00863_ R-06 Scavenger collects Lgt. Ion Engine. Map ----- +----------------------------------------------------+ | ?????????????????????????????????????????????????? | | ?????????????????????????????????????????????????? | | ?????????????????????????????????????????????????? | | ?????????????????????????????????????????????????? | | ?????????????????????????????????????????????????? | | ?????????????????????????????????????????????????? | | ?????????????????????????????????????????????????? | | ?????????????????????????????????????????????????? | | ?????????????????????????????????????????????????? | | ?????????????????????????????????????????????????? | | ?????????????????????????????????????????????????? | | ?????????????????????????????????????????????????? | | ????????????????????????? ???????????????????????? | | ????????????????????????# ???????????????????????? | | ????????????????????????# ???????????????????????? | | ????????????????????????# #??????????????????????? | | ????????????????????????# #??????????????????????? | | ????????????????????????# #??????????????????????? | | ????????????????????????# #??????????????????????? | | ??????????#######+####### ###????????????????????? | | ??????????# #????????????????????? | | ??????????+Y w +????????????????????? | | ??????????# """ #????????????????????? | | ???????????? "T" !#????????????????????? | | ???????????????" """ %= #????????????????????? | | ???????????????" """ ! @ ###########???######## | | ?????????????""" """ u### ##### "" | | ??????????# *%! # ""S | | ??????????# # "" | | ??????????# """ # | | ??????????# ############### """ =+% | | ??????????? ????????????????#### ^ """ # | | ???????????????????????????????#^ #!!! | | ???????????????????????????????# #!!! | | ???????????????????????????????# """ #!!! ] | | ???????????????????????????????# """ ######## | | ???????????????????????????????# """ #??????? | | ???????????????????????????????# #??????? | | ???????????????????????????????# #??????? | | ???????????????????????????????# #??????? | | ???????????????????????????????# #####??? | | ???????????????????????????????# ! " "** #??? | | ???????????????????????????????# "Y" #??? | | ???????????????????????????????# """ = #??? | | ???????????????????????????????###########+####??? | | ???????????????????????????????????????# !% #??? | | ???????????????????????????????????????# =#??? | | ???????????????????????????????????????# #??? | | ???????????????????????????????????????# #??? | | ???????????????????????????????????????# "T" #??? | +----------------------------------------------------+ Best States ------------- Heat Dissipation 38 Energy Generation 10 Energy Capacity 250 Matter Stores 300 Matter Capacity 300 Sight Range 16 Terrain Scan Density 10 Armor Coverage 150 Evasion (%) 42 Recoil Reduction 2 Item Schematics ----------------- None Robot Schematics ------------------ None Fabricated ------------ Nothing Alien Tech Used ----------------- None Achievements -------------- None Challenges ------------ None Game ------ Seed RiotSmartbombPrototype Manual? 0 Play Time 00:09:08 Cumulative 17.7 hours Start 2021.02.25 @ 10:44:35 End 2021.02.25 @ 10:52:25 Sessions 1 Manual Loads 0 Difficulty Rogue Special Mode None Game No. 34 Rogue 15 Adventurer 15 Explorer 4 Win Type - Total 0 Types 0/0/0/0/0/0/0/0/0 Lore% 23 Gallery% 33 Achievement% 22 Wizard Run 0 Options --------- ASCII 0 Keyboard 0 Movement Numpad Keybinds 0 Fullscreen 2 Font 18/Terminus Map View 76x50 Tactical HUD 1 Map Filters NONE Filters NONE Steam 1 RUN: cc55c393-4b1e-439d-b6b2-8e8a097dcbac